Cogmind - Beta 13 @@@ ROGUE MODE // 2024.05.06 @ 18:05:38 Player: NikedNOGsing_in_can't Result: Self-destructed Performance ------------- Evolutions (3) 1500 Regions Visited (9) 1800 Robots Destroyed (79) 395 Value Destroyed (1671) 1671 Prototype IDs (39) 780 Alien Tech Used (0) 0 Bonus (300) 300 TOTAL SCORE: 6446 Bonus ------- Aligned with FarCom 300 Cogmind --------- Core Integrity 684/700 Matter 0/300 Energy 290/290 System Corruption 14% Temperature Cool (0) Movement Rolling (245) Ox11 Location -7/Waste Parts ------- > --- POWER (1) -------- Improved Deuterium Engine > --- PROPULSION (4) --- Medium Treads Titanium Leg Wheel Wheel > --- UTILITY (4) ------ Humpback Improved Signal Interpreter Powered Armor > --- WEAPON (4) ------- Minigun Minigun Minigun Gauss Rifle > --- INVENTORY (35) --- Light Ion Engine Light Nuclear Core Gravmag System Improved Heat Sink Cooling System Large Storage Unit Improved Signal Interpreter Improved Signal Interpreter Seismic Detector Core Analyzer Matter Filter Kinecellerator Transmission Jammer Cloaking Device Improved Propulsion Shielding Improved Weapon Shielding Hardened Medium Armor Plating Hardened Medium Armor Plating Hardened Medium Armor Plating Hardened Medium Armor Plating Improved Light Armor Plating Reactive Plating Reactive Plating Powered Armor Powered Armor Field Recycling Unit (0) High-powered Shotgun Flak Gun Flak Gun AWS/Gauss Rocket Launcher Mini Grenade Launcher Datajack Plasma Cutter Peak State ------------ > --- POWER ------------ Light Nuclear Core > --- PROPULSION ------- Medium Treads Titanium Leg Wheel Wheel > --- UTILITY ---------- Cooling System Humpback Powered Armor > --- WEAPON ----------- High-powered Field Laser High-powered Shotgun Flak Gun Heavy Flail > --- INVENTORY -------- Light Ion Engine Flying Fortress v7 Large Storage Unit Large Matter Pod Structural Scanner Improved Signal Interpreter Improved Signal Interpreter Improved Signal Interpreter Improved Signal Interpreter Seismic Detector Core Analyzer Matter Filter Transmission Jammer Improved Propulsion Shielding Improved Weapon Shielding Reactive Plating Reactive Plating Powered Armor Powered Armor Field Recycling Unit YOLO Cannon Minigun Minigun Gauss Rifle Flak Gun AWS/Gauss Rocket Launcher Mini Grenade Launcher Datajack Plasma Cutter [Rating: 49] Favorites ----------- Power Ion Engine Engine Ion Engine Power Core Light Nuclear Core Propulsion Wheel Treads Light Treads Leg Titanium Leg Wheel Wheel Utility Humpback Device Seismic Detector Storage Humpback Processor Improved Signal Interpreter Protection Improved Light Armor Plating Weapon Light Assault Rifle Energy Gun Precision Shock Rifle Energy Cannon EM Pulse Cannon Ballistic Gun Light Assault Rifle Launcher Mini Grenade Launcher Special Weapon Mining Laser Impact Weapon Heavy Flail Special Melee Weapon Datajack Build | -11 -10 -10 -9 -9 -9 -8 -8 -7 -7 ------- Run | Yrd Mat Min Mat Min Exi Min Mat Fac Was Slots Evolved 6 | . . . 2 . . . 2 2 . Power . | . . . . . . . . . . Propulsion 2 | . . . 1 . . . 1 . . Utility 2 | . . . . . . . 1 1 . Weapon 2 | . . . 1 . . . . 1 . Parts Attached 81 | 6 7 3 2 10 4 8 23 18 . Power 5 | 1 1 . . . . 1 . 2 . Engine 4 | 1 1 . . . . 1 . 1 . Core 1 | . . . . . . . . 1 . Reactor . | . . . . . . . . . . Propulsion 15 | 2 . 1 1 1 1 2 6 1 . Treads 3 | 2 . . . . . . . 1 . Leg 4 | . . . 1 . 1 . 2 . . Wheel 8 | . . 1 . 1 . 2 4 . . Hover . | . . . . . . . . . . Flight . | . . . . . . . . . . Utility 19 | 1 4 . . 2 1 . 5 6 . Device 8 | . 1 . . 1 . . 3 3 . Storage 6 | 1 3 . . . 1 . . 1 . Processor 1 | . . . . . . . . 1 . Hackware . | . . . . . . . . . . Protection 4 | . . . . 1 . . 2 1 . Artifact . | . . . . . . . . . . Weapon 42 | 2 2 2 1 7 2 5 12 9 . Energy Gun 2 | . . . . . . . 1 1 . Energy Cannon 2 | . . . . 2 . . . . . Ballistic Gun 18 | 2 1 1 . 2 . 3 2 7 . Ballistic Cannon . | . . . . . . . . . . Launcher 12 | . 1 1 1 3 1 1 4 . . Special Weapon 3 | . . . . . . 1 2 . . Impact Weapon 4 | . . . . . . . 3 1 . Slashing Weapon . | . . . . . . . . . . Piercing Weapon . | . . . . . . . . . . Special Melee Weapon 1 | . . . . . 1 . . . . Unidentified Prototypes 2 | . . . . . . . 1 1 . Parts Lost 20 | . . 1 . 4 . 4 5 6 . Power 2 | . . . . . . 1 1 . . Propulsion 8 | . . 1 . 1 . 1 4 1 . Utility 3 | . . . . . . . . 3 . Weapon 7 | . . . . 3 . 2 . 2 . Highest Loss Streak 6 | . . 1 . 4 . 4 2 6 . To Critical Strikes . | . . . . . . . . . . Average Slot Usage (%) 87 | . 98 100 89 99 92 75 75 87 92 Engine 7 | . 14 14 11 11 11 10 2 . 7 Treads 8 | . 28 15 11 11 11 . . 4 7 Leg 9 | . . . 9 11 11 12 13 7 7 Wheel 11 | . . 12 11 11 11 19 13 15 15 Device 4 | . 12 14 11 10 . . 2 5 . Storage 10 | . 14 14 11 11 11 11 9 6 7 Protection 3 | . . . . . 3 . 6 5 7 Energy Cannon 1 | . . . . 15 . . . . . Ballistic Gun 18 | . 28 26 22 14 11 10 17 26 30 Launcher 4 | . . 1 3 1 11 5 2 . . Special Weapon 1 | . . . . . . 5 2 . . Impact Weapon 1 | . . . . . . . 3 3 . Special Melee Weapon 2 | . . . . . 10 . . . . Naked Turns . | . . . . . . . . . . Heaviest Build 233 | 13 29 29 30 40 208 206 214 233 233 Greatest Support 40 | 40 40 10 17 10 34 20 34 20 20 Greatest Overweight (x) 20 | . . 2 2 3 20 20 20 11 11 Average Overweight (x) 7 | . . 2 1 2 9 10 13 10 11 Largest Inventory Capacity 35 | 8 15 15 15 15 35 35 35 35 35 Average Capacity 26 | 7 11 15 15 15 28 35 35 34 35 Most Carried 35 | 4 9 6 15 15 24 26 35 35 35 Average Carried 21 | 3 5 5 13 14 18 24 33 31 34 Final Capacity 35 | 8 15 15 15 15 35 35 35 35 35 Final Carried 35 | 4 6 5 14 11 24 26 34 34 35 Class Distribution -------------------- 27% | Hauler-Mutant 25% | Mutant 16% | Hauler-Skirmisher 13% | Hauler-Tank 11% | Gunner Dominant Class ---------------- Mutant | -10/Materials Mutant | -10/Mines Mutant | -9/Materials Gunner | -9/Mines Hauler-Mutant | -9/Exiles Hauler-Skirmisher | -8/Mines Hauler-Skirmisher | -8/Materials Hauler-Tank | -7/Factory Hauler-Tank | -7/Waste Resources | -11 -10 -10 -9 -9 -9 -8 -8 -7 -7 ----------- Run | Yrd Mat Min Mat Min Exi Min Mat Fac Was Matter Collected 1557 | 368 190 . 14 115 215 124 443 88 . Remotely . | . . . . . . . . . . Salvage Created 1964 | 325 420 19 54 101 . 68 712 265 . Parts 145 | 37 33 5 7 6 . 10 34 13 . Haulers Intercepted 1 | . 1 . . . . . . . . Recyclers Shooed 3 | . . 1 . . . . 1 1 . Parts Field Recycled 6 | . . . . . . . 6 . . Retrieved Matter 36 | . . . . . . . 36 . . Parts Self-Destructed . | . . . . . . . . . . Prevented . | . . . . . . . . . . Kills | -11 -10 -10 -9 -9 -9 -8 -8 -7 -7 ------- Run | Yrd Mat Min Mat Min Exi Min Mat Fac Was Combat Hostiles Destroyed 41 | . 9 3 6 6 . 4 9 4 . Guns 17 | . 8 1 . . . 1 3 4 . Cannons 1 | . . . . 1 . . . . . AOE 23 | . 1 2 6 5 . 3 6 . . Classes Destroyed 14 | 3 5 . 1 1 . 1 1 2 . Worker 10 | 4 1 . . . . 1 3 1 . Builder 1 | . . . . . . . 1 . . Tunneler 13 | 9 . . . . . 2 2 . . Hauler 1 | . 1 . . . . . . . . Recycler 6 | 1 . . . . . . 4 1 . Operator 1 | . 1 . . . . . . . . Watcher 6 | . 2 . . . . . 4 . . Swarmer 16 | . 3 3 4 3 . 3 . . . Grunt 17 | . 6 . 1 2 . . 8 . . Duelist 2 | . . . 1 . . . 1 . . Sentry 1 | . . . . . . . . 1 . Demolisher 1 | . . . . 1 . . . . . Hunter 2 | . . . . . . 1 . 1 . Programmer 2 | . . . . . . . . 2 . Best Kill Streak 6 | 5 4 3 6 3 . 4 4 2 . Combat Bots Only 6 | . 3 3 6 3 . 3 3 1 . Max Kills in Single Turn 4 | 1 1 2 3 3 . 2 4 1 . Gunslinging . | . . . . . . . . . . Exploded 3 | . 1 2 3 3 . 2 3 . . Melee . | . . . . . . . . . . Uniques/NPCs Destroyed . | . . . . . . . . . . Combat | -11 -10 -10 -9 -9 -9 -8 -8 -7 -7 -------- Run | Yrd Mat Min Mat Min Exi Min Mat Fac Was Hostile Shots Fired 216 | . 41 12 17 7 . 31 63 45 . Missed 71 | . 8 4 7 . . 5 28 19 . Damage Taken 2544 | . 333 59 187 450 . 491 738 286 . Core 290 | . 43 12 23 45 . 57 94 16 . Absorbed by Shields . | . . . . . . . . . . Regen/Repaired (Parts) 291 | . . . . . . . 18 273 . Core Remaining (%) 82 | 100 . 78 . . . 68 82 . . Volleys Fired 213 | 27 52 8 3 7 . 30 72 14 . Largest 4 | 2 2 2 3 3 . 2 3 4 . Hottest 146 | 40 40 40 70 146 . 100 140 103 . Shots Fired 409 | 54 101 15 5 15 . 38 136 45 . Gun 369 | 54 98 14 2 5 . 33 118 45 . Cannon 9 | . . . . 9 . . . . . Launcher 24 | . 3 1 3 1 . 3 13 . . Special 7 | . . . . . . 2 5 . . Kinetic 369 | 54 98 14 2 5 . 33 118 45 . Thermal 7 | . . . . . . 2 5 . . Explosive 24 | . 3 1 3 1 . 3 13 . . Electromagnetic 9 | . . . . 9 . . . . . Robot Hit Streak 19 | 8 19 7 10 11 . 9 10 8 . Robot Miss Streak 7 | 2 6 3 . 4 . 3 3 7 . Penetration Max . | . . . . . . . . . . Secondary Targets 3 | . 2 . . . . . 1 . . Max Gunslinging Chain 1 | . 1 . . . . . 1 . . Autonomous 2 | . . . . . . 2 . . . Shots Hit Robots 258 | 31 62 10 3 6 4 24 88 30 . Core Hits 150 | 19 26 4 8 7 . 17 53 16 . Critical Kills . | . . . . . . . . . . Critical Parts Destroyed 3 | . . . . . . . 2 1 . Critical Strikes 4 | . . . . 1 . . 2 1 . Destroy 1 | . . . . . . . . 1 . Corrupt 1 | . . . . 1 . . . . . Smash 2 | . . . . . . . 2 . . Melee Attacks 21 | . . . . . 4 . 10 7 . Impact 17 | . . . . . . . 10 7 . Slashing . | . . . . . . . . . . Piercing . | . . . . . . . . . . Sneak Attacks 8 | . . . . . 4 . 4 . . Combat Hostiles . | . . . . . . . . . . Follow-up Attacks . | . . . . . . . . . . Damage Inflicted 5579 | 330 733 217 392 434 . 504 2450 519 . Guns 2385 | 330 660 98 22 10 . 162 584 519 . Cannons 122 | . . . . 122 . . . . . Explosions 2450 | . 73 119 370 302 . 318 1268 . . Melee 550 | . . . . . . . 550 . . Ramming . | . . . . . . . . . . Kinetic 2385 | 330 660 98 22 10 . 162 584 519 . Thermal 236 | . . . . 164 . 24 48 . . Explosive 2286 | . 73 119 370 138 . 318 1268 . . Electromagnetic 122 | . . . . 122 . . . . . Impact 550 | . . . . . . . 550 . . Slashing . | . . . . . . . . . . Piercing . | . . . . . . . . . . Highest Corruption 14 | . . . . . . . . 4 14 Average Corruption 4 | . . . . . . . . 3 12 Corruption Purged . | . . . . . . . . . . Corruption Blocked . | . . . . . . . . . . Effects 14 | . . . . . . . . 11 3 Message Errors 3 | . . . . . . . . 2 1 Matter Fused 3 | . . . . . . . . 2 1 Heat Flow Errors 5 | . . . . . . . . 4 1 Energy Discharges 1 | . . . . . . . . 1 . Data Loss (minor) 2 | . . . . . . . . 2 . Overload Shots . | . . . . . . . . . . Overflow Damage 586 | . 13 . 47 35 . 8 483 . . Projectiles . | . . . . . . . . . . Explosions 116 | . 13 . 47 35 . 8 13 . . Melee 470 | . . . . . . . 470 . . Knockbacks 3 | . . . . . . . 3 . . Impact 3 | . . . . . . . 3 . . Kinetic . | . . . . . . . . . . Secondary . | . . . . . . . . . . Self-Inflicted Damage 261 | . 5 . 85 34 . 99 38 . . Shots 8 | . 1 . 2 1 . 3 1 . . Rammed . | . . . . . . . . . . Targets Rammed . | . . . . . . . . . . Kicked . | . . . . . . . . . . Crushed . | . . . . . . . . . . Highest Temperature 241 | . 12 . . 225 . 8 36 241 98 Average Temperature 53 | . 6 . . 89 . 4 13 79 54 Received Heat Transfer 465 | . 132 . 12 . . . 315 6 . Siege Activations . | . . . . . . . . . . Robots Corrupted . | . . . . . . . . . . Combat Hostiles . | . . . . . . . . . . Parts Fried 6 | . . . . . . . 6 . . Impact Corruptions 13 | . . . . . . . 13 . . Robots Melted . | . . . . . . . . . . Combat Hostiles . | . . . . . . . . . . Parts Melted . | . . . . . . . . . . Heat Transferred 250 | . . . . 100 . 50 100 . . Parts Sabotaged . | . . . . . . . . . . Parts Stolen . | . . . . . . . . . . Parts Stripped . | . . . . . . . . . . Power Chain Reactions 2 | . . . . 2 . . . . . Alert | -11 -10 -10 -9 -9 -9 -8 -8 -7 -7 ------- Run | Yrd Mat Min Mat Min Exi Min Mat Fac Was Peak Influence 294 | 70 252 192 294 259 . 136 233 111 44 Initial 114 | . 45 97 74 114 . . . 77 29 Average 87 | 38 142 186 119 126 . 40 98 39 29 Maximum Alert Level 1 | . 1 . 1 1 . . 1 . . Low Security (%) 90 | 100 76 100 79 91 . 100 84 100 100 Level 1 9 | . 23 . 20 8 . . 15 . . Level 2 . | . . . . . . . . . . Level 3 . | . . . . . . . . . . Level 4 . | . . . . . . . . . . Level 5 . | . . . . . . . . . . High Security . | . . . . . . . . . . Max Security . | . . . . . . . . . . Squads Dispatched 7 | . 1 . . . . . 4 2 . Investigation 1 | . . . . . . . 1 . . Extermination 2 | . . . . . . . . 2 . Reinforcement 4 | . 1 . . . . . 3 . . Assault . | . . . . . . . . . . Garrison . | . . . . . . . . . . Intercept . | . . . . . . . . . . Searches Triggered . | . . . . . . . . . . Construction Impeded 1 | . . . . . . . 1 . . Haulers Reinforced . | . . . . . . . . . . Active Scanning Responses . | . . . . . . . . . . Cargo Convoy Interrupts . | . . . . . . . . . . Stealth | -11 -10 -10 -9 -9 -9 -8 -8 -7 -7 --------- Run | Yrd Mat Min Mat Min Exi Min Mat Fac Was Distress Signals 5 | . 3 . . . . . 2 . . Communications Jammed . | . . . . . . . . . . Distress Signals . | . . . . . . . . . . Times Spotted 63 | . 19 3 6 4 . 4 22 4 1 Peak Tracking Total 6 | . 4 3 6 2 . 3 5 1 1 Tactical Retreats 2 | . 1 . . . . . 1 . . Traps | -11 -10 -10 -9 -9 -9 -8 -8 -7 -7 ------- Run | Yrd Mat Min Mat Min Exi Min Mat Fac Was Traps Triggered 2 | . . . . . . . . 2 . Indirectly . | . . . . . . . . . . Trap Hack Attempts . | . . . . . . . . . . Triggered . | . . . . . . . . . . Disarmed . | . . . . . . . . . . Reprogrammed . | . . . . . . . . . . Reused . | . . . . . . . . . . Traps Extracted . | . . . . . . . . . . Installed 1 | . . . . 1 . . . . . Triggered . | . . . . . . . . . . Most Traps Carried 3 | . . . . 3 2 2 2 2 . Machines | -11 -10 -10 -9 -9 -9 -8 -8 -7 -7 ---------- Run | Yrd Mat Min Mat Min Exi Min Mat Fac Was Machines Disabled 8 | . . 1 2 1 . . 4 . . Max in Single Turn 2 | . . 1 2 1 . . 1 . . Machines Repaired . | . . . . . . . . . . Machines Dismantled . | . . . . . . . . . . Machines Sabotaged . | . . . . . . . . . . Overloaded Fab Kills . | . . . . . . . . . . Hacking | -11 -10 -10 -9 -9 -9 -8 -8 -7 -7 --------- Run | Yrd Mat Min Mat Min Exi Min Mat Fac Was Machines Accessed 13 | . 3 . . . 4 . 3 3 . Terminals 5 | . 2 . . . . . 2 1 . Fabricators 1 | . . . . . . . . 1 . Repair Stations 2 | . . . . . . . 1 1 . Recycling Units 1 | . 1 . . . . . . . . Scanalyzers . | . . . . . . . . . . Garrison Access . | . . . . . . . . . . Total Hacks 27 | . 6 . . . 7 . 8 6 . Successful 15 | . 2 . . . 7 . 3 3 . Failed 12 | . 4 . . . . . 5 3 . Catastrophic 5 | . 2 . . . . . 2 1 . Database Lockouts . | . . . . . . . . . . Manual 5 | . 2 . . . 1 . 2 . . Terminals 11 | . 4 . . . . . 6 1 . Fabricators 3 | . . . . . . . . 3 . Repair Stations 4 | . . . . . . . 2 2 . Recycling Units 2 | . 2 . . . . . . . . Scanalyzers . | . . . . . . . . . . Garrison Access . | . . . . . . . . . . Terminal Hacks 9 | . 1 . . . 7 . 1 . . Record 6 | . . . . . 6 . . . . Robot Analysis 1 | . 1 . . . . . . . . Branch Access Points 1 | . . . . . . . 1 . . Derelict Proto ID Bank 1 | . . . . . 1 . . . . Fabricator Hacks 1 | . . . . . . . . 1 . Network Status 1 | . . . . . . . . 1 . Repair Station Hacks 4 | . . . . . . . 2 2 . Scan Component 2 | . . . . . . . 1 1 . Repair 2 | . . . . . . . 1 1 . Recycling Unit Hacks 1 | . 1 . . . . . . . . Retrieve Components 1 | . 1 . . . . . . . . Scanalyzer . | . . . . . . . . . . Garrison Access Hacks . | . . . . . . . . . . Unauthorized Hacks . | . . . . . . . . . . Terminals . | . . . . . . . . . . Fabricators . | . . . . . . . . . . Repair Stations . | . . . . . . . . . . Recycling Units . | . . . . . . . . . . Scanalyzers . | . . . . . . . . . . Garrison Access . | . . . . . . . . . . Data Cores Recovered 1 | . 1 . . . . . . . . Used 1 | . 1 . . . . . . . . Hacking Detections 7 | . 3 . . . . . 2 2 . Full Trace Events 2 | . 1 . . . . . 1 . . Feedback Events . | . . . . . . . . . . Feedback Blocked . | . . . . . . . . . . Robot Schematics Acquired . | . . . . . . . . . . Robots Built . | . . . . . . . . . . Authchips . | . . . . . . . . . . Time . | . . . . . . . . . . Total Robot Build Rating . | . . . . . . . . . . Part Schematics Acquired . | . . . . . . . . . . Parts Built . | . . . . . . . . . . Authchips . | . . . . . . . . . . Time . | . . . . . . . . . . Total Part Build Rating . | . . . . . . . . . . Parts Repaired 2 | . . . . . . . 1 1 . Time 52 | . . . . . . . 26 26 . Parts Recycled . | . . . . . . . . . . Recycled Matter . | . . . . . . . . . . Retrieved Matter . | . . . . . . . . . . Retrieved Components 3 | . 3 . . . . . . . . Parts Scanalyzed . | . . . . . . . . . . Part Schematics Acquired . | . . . . . . . . . . Parts Damaged . | . . . . . . . . . . Bothacking | -11 -10 -10 -9 -9 -9 -8 -8 -7 -7 ------------ Run | Yrd Mat Min Mat Min Exi Min Mat Fac Was Used RIF Installer . | . . . . . . . . . . Robots Hacked 4 | . . . . . 4 . . . . Non-combat 3 | . . . . . 3 . . . . Combat 1 | . . . . . 1 . . . . Robot Hacks Applied 4 | . . . . . 4 . . . . parse_system 4 | . . . . . 4 . . . . Relay Couplers Released . | . . . . . . . . . . Fabnet Peak Effective % . | . . . . . . . . . . Robots Rewired . | . . . . . . . . . . Allies Hacked . | . . . . . . . . . . Hacks Repelled . | . . . . . . . . . . Allies | -11 -10 -10 -9 -9 -9 -8 -8 -7 -7 -------- Run | Yrd Mat Min Mat Min Exi Min Mat Fac Was Total Allies . | . . . . . . . . . . Largest Group . | . . . . . . . . . . Highest-Rated Group . | . . . . . . . . . . Highest-Rated Ally . | . . . . . . . . . . Total Orders . | . . . . . . . . . . Ally Attacks . | . . . . . . . . . . Total Damage . | . . . . . . . . . . Kills . | . . . . . . . . . . Allies Corrupted . | . . . . . . . . . . Allies Melted . | . . . . . . . . . . Intel | -11 -10 -10 -9 -9 -9 -8 -8 -7 -7 ------- Run | Yrd Mat Min Mat Min Exi Min Mat Fac Was Robot Analysis Total 1 | . 1 . . . . . . . . Derelict Logs Recovered 2 | . . 1 . 1 . . . . . Drone Launches . | . . . . . . . . . . Drone Recoveries . | . . . . . . . . . . Exploration | -11 -10 -10 -9 -9 -9 -8 -8 -7 -7 ------------- Run | Yrd Mat Min Mat Min Exi Min Mat Fac Was Turns Passed 6937 | 360 735 85 141 826 1494 556 1505 1142 93 Spaces Moved 2912 | 118 336 55 104 623 629 199 408 406 34 Core 3 | 3 . . . . . . . . . Treads 451 | 115 336 . . . . . . . . Legs 12 | . . . 9 . 1 . 2 . . Wheels 2446 | . . 55 95 623 628 199 406 406 34 Hover . | . . . . . . . . . . Flight . | . . . . . . . . . . Fastest Speed 50 | 50 160 110 110 110 125 230 195 230 245 Average Speed 198 | 157 160 110 117 124 228 238 279 239 245 Slowest Speed 550 | 160 160 110 200 125 550 380 550 245 245 Overloaded Moves . | . . . . . . . . . . Propulsion Burnouts . | . . . . . . . . . . Robots Hopped . | . . . . . . . . . . Cave-ins Triggered . | . . . . . . . . . . Exploration Rate (%) 38 | 6 62 10 15 83 72 54 34 10 35 Regions Visited 9 Branch Regions 4 Pre-discovered Areas 2 | . . 1 . . 1 . . . . Known Exits Taken 1 | . . . . . . . 1 . . Unknown Exits Taken 7 | 1 1 1 1 1 1 1 . . . Scrap Searched 2 | . . . . 2 . . . . . Spaces Dug 27 | . . . . . . 13 7 7 . Terrain Destroyed 245 | . 24 5 64 16 . 39 90 7 . Melee 11 | . . . . . . . 4 7 . Projectile 8 | . . . . . . 5 3 . . AOE 226 | . 24 5 64 16 . 34 83 . . Terrain Rammed . | . . . . . . . . . . Walls Destroyed . | . . . . . . . . . . Machines Disabled . | . . . . . . . . . . Actions | -11 -10 -10 -9 -9 -9 -8 -8 -7 -7 --------- Run | Yrd Mat Min Mat Min Exi Min Mat Fac Was Total 3675 | 241 442 65 118 661 686 247 635 537 43 Wait 311 | 87 38 . . 11 30 5 88 44 8 Move 2904 | 117 335 54 103 622 628 198 407 406 34 Hop . | . . . . . . . . . . Pick Up 109 | 4 5 . 10 5 18 4 23 39 1 Fast Attach 18 | 6 . . 1 1 1 2 1 6 . Attach 18 | . 1 1 1 4 . 4 5 2 . Detach 2 | . . . . . . 2 . . . Swap 45 | . 6 2 . 5 3 2 17 10 . Drop 33 | . 5 . . 5 2 . 12 9 . Fire 213 | 27 52 8 3 7 . 30 72 14 . Melee 21 | . . . . . 4 . 10 7 . Ram . | . . . . . . . . . . Kick . | . . . . . . . . . . Crush . | . . . . . . . . . . Escape Stasis . | . . . . . . . . . . Rewire . | . . . . . . . . . . Trap 1 | . . . . 1 . . . . . Miscellaneous . | . . . . . . . . . . Route ------- -11/Scrapyard -10/Materials (discovered 2 exits: [*Mat] / [*Min]) -10/Mines -9/Materials -9/Mines (discovered 3 exits: *Mat x2 / *Exi) -9/Exiles -8/Mines -8/Materials (discovered 2 exits: *Fac x2) -7/Factory -7/Waste History --------- Turn | Location | Event 4 | -11/Scrapyard | Discovered new exit (range 15) 361 | -11/Scrapyard | Entered Materials 362 | -10/Materials | Build established: Mutant 723 | -10/Materials | Discovered new exit (range 13) 1009 | -10/Materials | Discovered new exit (range 15) 1096 | -10/Materials | Entered Mines 1175 | -10/Mines | Discovered new exit (range 6) 1181 | -10/Mines | Entered Materials 1181 | -9/Materials | Evolved 2 slots: Propulsion x1, Weapon x1 1302 | -9/Materials | Discovered new exit (range 14) 1322 | -9/Materials | Entered Mines 1356 | -9/Mines | Met a Derelict bent on vengeance 1363 | -9/Mines | Learned location of 1 exit from Materials 1476 | -9/Mines | Found a hidden stash of uninstalled traps 1545 | -9/Mines | Deemed a non-threat by the Exiles lab entrance 1546 | -9/Mines | Discovered new exit (range 5) 1596 | -9/Mines | Build established: Gunner 1693 | -9/Mines | Discovered new exit (range 10) 1953 | -9/Mines | Discovered new exit (range 7) 1983 | -9/Mines | Received a Rocket Launcher from a helpful Derelict 2052 | -9/Mines | Assembled infested the area 2057 | -9/Mines | Assisted by a Guerilla fighting off Assembled 2116 | -9/Mines | Lost 4 parts (1n3w) 2148 | -9/Mines | Entered Exiles 2180 | -9/Exiles | Met 8R-AWN 2203 | -9/Exiles | Met EX-HEX 2294 | -9/Exiles | Met EX-DEC 2376 | -9/Exiles | Learned location of Zion (-6) 2397 | -9/Exiles | Met EX-BIN 2476 | -9/Exiles | Build established: Mutant 2486 | -9/Exiles | Aligned with FarCom system 2487 | -9/Exiles | Given EX-Vault access code 2516 | -9/Exiles | Opened EX-Vault 2527 | -9/Exiles | Found YOLO Cannon 2532 | -9/Exiles | Found AWS/Gauss 2559 | -9/Exiles | Warned to stay clear of 0b10 Research branches 2963 | -9/Exiles | Build established: Hauler-Mutant 3159 | -9/Exiles | Found Flying Fortress v7 3590 | -9/Exiles | Discovered new exit (range 12) 3642 | -9/Exiles | Stole three prototypes: Flying Fortress v7, YOLO Cannon, AWS/Gauss 3642 | -9/Exiles | Entered Mines 3712 | -8/Mines | Lost 4 parts (1p1n2w) 4076 | -8/Mines | Discovered new exit (range 12) 4198 | -8/Mines | Entered Materials 4198 | -8/Materials | Evolved 2 slots: Propulsion x1, Utility x1 4199 | -8/Materials | Identified exit to Factory 4245 | -8/Materials | Build established: Hauler-Skirmisher 4280 | -8/Materials | Repaired Seismic Detector 5051 | -8/Materials | Found Powered Armor 5056 | -8/Materials | Found Powered Armor 5061 | -8/Materials | Found Powered Armor 5348 | -8/Materials | Build established: Hauler-Mutant 5584 | -8/Materials | Discovered exit to Factory (range 3) 5703 | -8/Materials | Entered Factory 5703 | -7/Factory | Evolved 2 slots: Utility x1, Weapon x1 5705 | -7/Factory | FarCom data flow suspended 6010 | -7/Factory | Discovered new exit (range 7) 6368 | -7/Factory | Repaired Humpback 6373 | -7/Factory | Lost 6 parts (1n3u2w) 6554 | -7/Factory | Identified exit to Factory 6669 | -7/Factory | Build established: Hauler-Tank 6845 | -7/Factory | Sucked down chute 6845 | -7/Factory | Entered Waste 6860 | -7/Waste | EMP discharged 6860 | -7/Waste | System corruption reached 10% 6912 | -7/Waste | Spotted C-40 Crusher 6934 | -7/Waste | Spotted C-40 Crusher 6938 | -7/Waste | Self-destructed Last Messages --------------- 06735_ Acquired Kinecellerator. 06759_ R-06 Scavenger collects Imp. Light Armor Plating. 06762_ R-06 Scavenger collects Imp. Heat Sink. 06770_ R-06 Scavenger destroyed. 06797_ Acquired Imp. Light Armor Plating. 06800_ System corrupted: Component data lost. 06824_ K-01 Serf cleans the Fusion Modulator. 06845_ Triggered Chute Trap. 06845_ A hatch slides open and sucks a vortex of air into the floor. LOCATION=UNKNOWN GOAL=ESCAPE 06850_ ALERT: Foreign system detected. Charging EMP. 06852_ Acquired Broken Cloaking Device. 06860_ System corrupted (+10). 06873_ System corrupted: Matter fused (-8). 06910_ 7BKF5G6L,N 06930_ System corrupted: Heat flow error (+120). Map ----- +----------------------------------------------------+ | ?????????????????????????????????????????????????? | | ?????????????????????????????????????????????????? | | ?????????????????????????????????????????????????? | | ?????????????????????????????????????????????????? | | ?????????????????????????????????????????????????? | | ?????????????????????????????????????????????????? | | ?????????????????????????????????????????????????? | | ?????????????????????????????????????????????????? | | ?????????????????????????????????????????????????? | | ???????????????????????? ??????????????????????? | | ????????????? ?????????? #????????????????????? | | ???????????? ???????? #????????????????????? | | ???????????# ###????# ###??????????????????? | | ??????????? ???? ???????????????????? | | ??????????? ???? ???????????????????? | | ??????????? ????? ????????????????????? | | ??????????? ?????? CC ????????????????????? | | ???????????# #??????# CC#????????????????????? | | #########??# #??????# #????????????????????? | | #??# #??????# #????????????????????? | | #??# #??????# #????????????????????? | | #### #??????# #????????????????????? | | #??????# #????????????????????? | | #??????# #????????????????????? | | #??????# #????????????????????? | | #??????# @ #????????????????????? | | #### #??????# #????????????????????? | | #??# #??????# #????????????????????? | | #??# #??????# #????????????????????? | | #########??# #??????# #????????????????????? | | ?????????### ######## #????????????????????? | | ?????????# #????????????????????? | | ?????????# #????????????????????? | | ?????????# #????????????????????? | | ?????????# #????????????????????? | | ?????????### ######## #????????????????????? | | ???????????# #??????# #????????????????????? | | ???????????# #??????# #????????????????????? | | ???????????# #??????# #????????????????????? | | ???????????# #??????# #????????????????????? | | ???????????######??????######????????????????????? | | ?????????????????????????????????????????????????? | | ?????????????????????????????????????????????????? | | ?????????????????????????????????????????????????? | | ?????????????????????????????????????????????????? | | ?????????????????????????????????????????????????? | | ?????????????????????????????????????????????????? | | ?????????????????????????????????????????????????? | | ?????????????????????????????????????????????????? | | ?????????????????????????????????????????????????? | +----------------------------------------------------+ Best States ------------- Heat Dissipation 56 Energy Generation 16 Energy Capacity 290 Matter Stores 300 Matter Capacity 300 Sight Range 16 Terrain Scan Density 10 Jamming Range 12 Armor Coverage 400 Resistance: KI 20 Evasion (%) 40 Recoil Reduction 2 Item Schematics ----------------- None Robot Schematics ------------------ None Fabricated ------------ Nothing Alien Tech Used ----------------- None Achievements -------------- None Challenges ------------ None Game ------ Seed BlastMiniFlamer Manual? 0 Play Time 00:58:35 Cumulative 75.7 hours Start 2024.05.05 @ 21:29:32 End 2024.05.06 @ 18:05:38 Sessions 3 Manual Loads 0 Difficulty Rogue Special Mode None Game No. 40 Rogue 40 Adventurer 0 Explorer 0 Win Type - Total 0 Types 0/0/0/0/0/0/0/0/0 Lore% 43 Gallery% 56 Achievement% 42 Wizard Run 0 Options --------- Layout 1 ASCII 0 Keyboard 0 Movement Mouse Keybinds 0 Fullscreen 1 Font 24/Smallcaps Map View 50x35 Zoom Use 0% Tactical HUD 1 Map Filters NONE Filters NONE Steam 1 RUN: 87448158-6764-433f-96c9-4ab2ba83d6fc